fUST/lending_fUST_20260430
["ID","MTS","AMOUNT","RATE_DAILY","PERIOD"]
[421382914,1777533038000,-1517.45775094,0.00019997,2]
[421382912,1777533038000,-400.0,0.000199,3]
[421382915,1777533038000,-1517.45775094,0.00019997,2]
[421382918,1777533038000,-1517.45775094,0.00019997,2]
[421382942,1777533039000,-1211.44172772,0.0002,20]
[421383005,1777533040000,-396.27900709,0.0002,20]
[421382997,1777533040000,-1202.22657072,0.0002,20]
[421382999,1777533040000,-1175.66510949,0.0002,20]
[421383032,1777533043000,-5530.34486894,0.0002,20]
[421383030,1777533043000,-596.09182821,0.00018118,2]
[421383031,1777533043000,-337.43848166,0.00018118,2]
[421383046,1777533046000,-25883.58664574,0.0002,20]
[421383045,1777533046000,-270.92770478,0.000198,2]
[421383121,1777534232000,-1204.23062129,0.00012054,2]
[421383124,1777534232000,-562.9607342,0.00012176,2]
[421383123,1777534232000,-1938.14382001,0.00012054,2]
[421383145,1777534238000,-704.18391914,0.00012176,2]
[421383158,1777534238000,-219.76169991,0.00014856,2]
[421383161,1777534238000,-204.0,0.00016361,2]
[421383159,1777534238000,-507.0,0.00014956,2]
[421383162,1777534238000,-1000.0,0.00017148,2]
[421383152,1777534238000,-420.0,0.00013631,2]
[421383154,1777534238000,-62.84985704,0.00013699,2]
[421383153,1777534238000,-1375.0,0.00013664,2]
[421383151,1777534238000,-260.81718971,0.00013599,2]
[421383150,1777534238000,-308.67008692,0.00013599,2]
[421383148,1777534238000,-1200.0,0.00012422,2]
[421383149,1777534238000,-300.0,0.00012422,2]
[421383147,1777534238000,-150.0,0.00012361,2]
[421383157,1777534238000,-162.80853434,0.00014856,2]
[421383156,1777534238000,-177.0,0.00014361,2]
[421383146,1777534238000,-1181.30809767,0.00012176,2]
[421383160,1777534238000,-320.0,0.00014957,2]
[421383164,1777534238000,-162.80853435,0.00018953,2]
[421383176,1777534238000,-6006.88351959,0.000198,2]
[421383173,1777534238000,-238.05,0.0001959,2]
[421383174,1777534238000,-1738.25650283,0.000198,2]
[421383175,1777534238000,-34115.36433556,0.000198,2]
[421383170,1777534238000,-152.0,0.00019487,7]
[421383171,1777534238000,-152.0,0.00019506,7]
[421383172,1777534238000,-185.0,0.00019539,2]
[421383169,1777534238000,-370.13021771,0.00019108,2]
[421383166,1777534238000,-1957.856,0.00018998,2]
[421383165,1777534238000,-537.6845,0.00018998,2]
[421383167,1777534238000,-557.5788265,0.00019053,2]
[421383155,1777534238000,-937.15014296,0.00013699,2]
[421383168,1777534238000,-484.2849422,0.00019053,2]
[421383163,1777534238000,-231.0,0.00018361,2]
[421383192,1777534245000,1654.575424,7.6e-05,2]
[421383214,1777534249000,-1314.50793815,0.00019799,2]
[421383216,1777534249000,-1314.50793815,0.00019799,2]
[421383217,1777534249000,-1126.84081825,0.00019799,2]
[421383215,1777534249000,-1314.50793815,0.00019799,2]
[421383209,1777534249000,-6792.87037991,7.6e-05,2]
[421383211,1777534249000,-1314.50793815,0.00019799,2]
[421383210,1777534249000,-10241.21668785,0.0001,2]
[421383212,1777534249000,-230.75437657,0.00019799,2]
[421383213,1777534249000,-1314.50793815,0.00019799,2]
[421383225,1777534249000,-1314.50793815,0.00019799,2]
[421383230,1777534249000,-1314.50793815,0.00019799,2]
[421383222,1777534249000,-1314.50793815,0.00019799,2]
[421383227,1777534249000,-1314.50793815,0.00019799,2]
[421383219,1777534249000,-187.6671199,0.00019799,2]
[421383220,1777534249000,-1314.50793815,0.00019799,2]
[421383228,1777534249000,-1314.50793815,0.00019799,2]
[421383231,1777534249000,-1314.50793815,0.00019799,2]
[421383234,1777534249000,-19156.06542925,0.000198,2]
[421383232,1777534249000,-1314.50793815,0.00019799,2]
[421383233,1777534249000,-1314.50793815,0.00019799,2]
[421383224,1777534249000,-1314.50793815,0.00019799,2]
[421383260,1777535432000,-185.0,0.00019031,2]
[421383258,1777535432000,-151.0,0.00018421,2]
[421383254,1777535432000,-177.0,0.00014212,2]
[421383255,1777535432000,-204.0,0.00016212,2]
[421383252,1777535432000,-589.0,0.00012,2]
[421383251,1777535432000,-1483.54910119,0.00012,2]
[421383257,1777535432000,-231.0,0.00018212,2]
[421383253,1777535432000,-1000.0,0.00013699,2]
[421383262,1777535432000,-300.0,0.00019305,2]
[421383261,1777535432000,-151.0,0.00019178,2]
[421383259,1777535432000,-238.63,0.00018744,2]
[421383270,1777535432000,-802.80248685,0.00019306,2]
[421383268,1777535432000,-500.0,0.00019306,2]
[421383267,1777535432000,-500.0,0.00019306,2]
[421383266,1777535432000,-500.0,0.00019306,2]
[421383271,1777535432000,-8301.01646065,0.000196,2]
[421383264,1777535432000,-316.46915928,0.00019306,2]
[421383263,1777535432000,-492.0,0.00019305,2]
[421383269,1777535432000,-500.0,0.00019306,2]
[421383265,1777535432000,-183.53084072,0.00019306,2]
[421383256,1777535432000,-1000.0,0.00017994,2]
[421383386,1777535448000,-1240.85293282,0.00019599,2]
[421383388,1777535448000,-1240.85293282,0.00019599,2]
[421383394,1777535448000,-487.17214087,0.00019599,2]
[421383391,1777535448000,-500.0,0.00019599,2]
[421383378,1777535448000,-2849.0,0.00019598,2]
[421383385,1777535448000,-1240.85293282,0.00019599,2]
[421383381,1777535448000,-1240.85293282,0.00019599,2]
[421383376,1777535448000,-177.0,0.00019274,2]
[421383383,1777535448000,-1240.85293282,0.00019599,2]
[421383397,1777535448000,-1240.85293282,0.00019599,2]
[421383384,1777535448000,-1240.85293282,0.00019599,2]
[421383372,1777535448000,-500.0,0.0001495,2]
[421383374,1777535448000,-150.0,0.00017274,2]
[421383390,1777535448000,-1240.85293282,0.00019599,2]
[421383379,1777535448000,-220.87372397,0.00019599,2]
[421383393,1777535448000,-500.0,0.00019599,2]
[421383392,1777535448000,-500.0,0.00019599,2]
[421383407,1777535448000,-760.69687761,0.000196,2]
[421383405,1777535448000,-1246.62269966,0.000196,2]
[421383402,1777535448000,-494.42853346,0.00019599,2]
[421383403,1777535448000,-1240.85293282,0.00019599,2]
[421383404,1777535448000,-63528.11903199,0.000196,2]
[421383399,1777535448000,-500.0,0.00019599,2]
[421383406,1777535448000,-7477.49666069,0.000196,2]
[421383400,1777535448000,-1240.85293282,0.00019599,2]
[421383396,1777535448000,-500.0,0.00019599,2]
[421383395,1777535448000,-1240.85293282,0.00019599,2]
[421383398,1777535448000,-1240.85293282,0.00019599,2]
[421383389,1777535448000,-1240.85293282,0.00019599,2]
[421383401,1777535448000,-500.0,0.00019599,2]
[421383387,1777535448000,-1240.85293282,0.00019599,2]
[421383411,1777535991000,190.35179873,0.00021917,120]
[421383445,1777536632000,-162.80853435,0.000173,2]
[421383455,1777536632000,-151.0,0.00019,2]
[421383443,1777536632000,-1000.0,0.00013699,2]
[421383442,1777536632000,-330.23438171,0.00013562,2]
[421383440,1777536632000,-150.0,0.00013494,2]
[421383441,1777536632000,-612.0,0.00013494,2]
[421383439,1777536632000,-2352.94404034,0.00013225,10]
[421383448,1777536632000,-204.0,0.00017494,2]
[421383444,1777536632000,-177.0,0.00015494,2]
[421383449,1777536632000,-265.27,0.00017878,2]
[421383452,1777536632000,-397.9,0.0001869,2]
[421383446,1777536632000,-1000.0,0.00017466,2]
[421383450,1777536632000,-331.58,0.00018284,2]
[421383454,1777536632000,-670.0,0.00019,2]
[421383453,1777536632000,-224.9963719,0.0001896,2]
[421383451,1777536632000,-1200.0,0.00018687,2]
[421383456,1777536632000,-2839.0,0.00019,2]
[421383459,1777536632000,-49.57739034,0.00019096,2]
[421383458,1777536632000,-185.0,0.00019031,2]
[421383457,1777536632000,-200.30499457,0.00019,2]
[421383447,1777536632000,-198.95,0.00017472,2]
[421383491,1777536638000,-277.15872594,0.00019398,2]
[421383509,1777536638000,-1092.89191759,0.00019399,2]
[421383496,1777536638000,-1092.89191759,0.00019399,2]
[421383492,1777536638000,-236.8031624,0.00019399,2]
[421383503,1777536638000,-1092.89191759,0.00019399,2]
[421383507,1777536638000,-1092.89191759,0.00019399,2]
[421383505,1777536638000,-1092.89191759,0.00019399,2]
[421383494,1777536638000,-924.16875348,0.00019399,2]
[421383500,1777536638000,-1092.89191759,0.00019399,2]
[421383489,1777536638000,-165.24134899,0.00019398,2]
[421383487,1777536638000,-414.64260966,0.00019096,2]
[421383502,1777536638000,-1092.89191759,0.00019399,2]
[421383510,1777536638000,-1092.89191759,0.00019399,2]
[421383498,1777536638000,-1092.89191759,0.00019399,2]
[421383521,1777536638000,-1092.89191759,0.00019399,2]
[421383528,1777536638000,-1175.46597359,0.00019399,2]
[421383527,1777536638000,-1175.46597359,0.00019399,2]
[421383525,1777536638000,-1175.46597359,0.00019399,2]
[421383516,1777536638000,-1092.89191759,0.00019399,2]
[421383522,1777536638000,-1092.89191759,0.00019399,2]
[421383526,1777536638000,-1175.46597359,0.00019399,2]
[421383523,1777536638000,-1175.46597359,0.00019399,2]
[421383513,1777536638000,-1092.89191759,0.00019399,2]
[421383512,1777536638000,-1092.89191759,0.00019399,2]
[421383515,1777536638000,-1092.89191759,0.00019399,2]
[421383518,1777536638000,-1092.89191759,0.00019399,2]
[421383524,1777536638000,-1175.46597359,0.00019399,2]
[421383519,1777536638000,-1092.89191759,0.00019399,2]
[421383514,1777536638000,-1092.89191759,0.00019399,2]
[421383530,1777536639000,-1175.46597359,0.00019399,2]
[421383531,1777536639000,-50835.20309419,0.000194,2]
[421383529,1777536639000,-1175.46597359,0.00019399,2]
[421383536,1777536641000,-4052.64258996,0.000194,2]
[421383578,1777536645000,-500.0,0.00019399,2]
[421383581,1777536645000,-3911.20702541,0.000194,2]
[421383582,1777536645000,-4895.9349,0.000194,2]
[421383580,1777536645000,-278.31924627,0.00019399,2]
[421383579,1777536645000,-500.0,0.00019399,2]
[421383577,1777536645000,-362.0,0.00019,2]
[421383589,1777536647000,-337.2,0.000194,2]
[421383588,1777536647000,-7555.21288691,0.000194,2]
[421383593,1777536647000,-59384.96069837,0.000194,2]
[421383591,1777536647000,-540.92371165,0.000194,2]
[421383592,1777536647000,-300.0,0.000194,2]
[421383590,1777536647000,-5601.70041063,0.000194,2]
[421383594,1777536736000,164.0,6e-05,10]
[421383595,1777537227000,7740.0,0.000219,120]
[421383596,1777537236000,155.29,0.00021917,120]
[421383609,1777537831000,-951.93741791,0.00013112,10]
[421383610,1777537831000,-211.4100911,0.00013244,2]
[421383631,1777537840000,-608.0,0.00013244,2]
[421383650,1777537840000,-240.28112324,0.00017,2]
[421383649,1777537840000,-300.0,0.00016739,2]
[421383651,1777537840000,-240.28112324,0.000172,2]
[421383652,1777537840000,-1000.0,0.00017212,2]
[421383658,1777537840000,-232.51723821,0.00018,2]
[421383660,1777537840000,-232.51723821,0.000182,2]
[421383656,1777537840000,-300.0,0.00018,2]
[421383657,1777537840000,-443.11645036,0.00018,2]
[421383659,1777537840000,-443.11645036,0.000182,2]
[421383654,1777537840000,-240.28112324,0.000175,2]
[421383653,1777537840000,-240.28112324,0.000173,2]
[421383662,1777537840000,-443.11645036,0.000185,2]
[421383672,1777537840000,-500.0,0.000194,2]
[421383648,1777537840000,-188.14282548,0.000162,2]
[421383674,1777537840000,-305.09540366,0.00019624,2]
[421383645,1777537840000,-188.14282548,0.000158,2]
[421383644,1777537840000,-188.14282548,0.000156,2]
[421383635,1777537840000,-160.65002626,0.000143,2]
[421383632,1777537840000,-1000.0,0.00013699,2]
[421383633,1777537840000,-160.65002626,0.00014,2]
[421383634,1777537840000,-160.65002626,0.000141,2]
[421383630,1777537840000,-85.07081859,0.00013244,2]
[421383637,1777537840000,-160.65002626,0.000146,2]
[421383643,1777537840000,-1877.3074999,0.000156,2]
[421383636,1777537840000,-160.65002626,0.000144,2]
[421383640,1777537840000,-300.0,0.00015299,2]
[421383647,1777537840000,-188.14282548,0.000161,2]
[421383639,1777537840000,-1877.3074999,0.000152,2]
[421383638,1777537840000,-1877.3074999,0.00015,2]
[421383641,1777537840000,-1877.3074999,0.000153,2]
[421383642,1777537840000,-1877.3074999,0.000155,2]
[421383646,1777537840000,-188.14282548,0.000159,2]
[421383661,1777537840000,-443.11645036,0.000184,2]
[421383655,1777537840000,-240.28112324,0.000177,2]
[421383676,1777537840000,-500.0,0.00019624,2]
[421383701,1777537840000,-865.0,0.00019625,2]
[421383703,1777537840000,-752.55587274,0.00019625,2]
[421383705,1777537840000,-865.0,0.00019625,2]
[421383706,1777537840000,-865.0,0.00019625,2]
[421383704,1777537840000,-112.44412726,0.00019625,2]
[421383707,1777537840000,-865.0,0.00019625,2]
[421383664,1777537840000,-218.85,0.00018839,2]
[421383709,1777537840000,-865.0,0.00019625,2]
[421383711,1777537840000,-865.0,0.00019625,2]
[421383708,1777537840000,-865.0,0.00019625,2]
[421383712,1777537840000,-865.0,0.00019625,2]
[421383710,1777537840000,-865.0,0.00019625,2]
[421383715,1777537840000,-770.48100402,0.00019625,2]
[421383714,1777537840000,-762.42352425,0.00019625,2]
[421383713,1777537840000,-102.57647575,0.00019625,2]
[421383698,1777537840000,-865.0,0.00019625,2]
[421383699,1777537840000,-865.0,0.00019625,2]
[421383702,1777537840000,-865.0,0.00019625,2]
[421383665,1777537840000,-197.54273662,0.00018989,60]
[421383663,1777537840000,-443.11645036,0.000187,2]
[421383666,1777537840000,-372.701,0.00019299,2]
[421383680,1777537840000,-500.0,0.00019624,2]
[421383678,1777537840000,-584.83055359,0.00019624,2]
[421383700,1777537840000,-865.0,0.00019625,2]
[421383670,1777537840000,-568.0,0.000194,2]
[421383668,1777537840000,-237.28,0.000194,2]
[421383692,1777537840000,-865.0,0.00019625,2]
[421383694,1777537840000,-865.0,0.00019625,2]
[421383684,1777537840000,-865.0,0.00019625,2]
[421383686,1777537840000,-865.0,0.00019625,2]
[421383688,1777537840000,-865.0,0.00019625,2]
[421383690,1777537840000,-865.0,0.00019625,2]
[421383696,1777537840000,-865.0,0.00019625,2]
[421383682,1777537840000,-419.29489584,0.00019624,2]
[421383738,1777537846000,-152.0,0.00019631,7]
[421383735,1777537846000,-94.51899598,0.00019625,2]
[421383737,1777537846000,-878.42468638,0.00019625,2]
[421383734,1777537846000,-185.0,0.0001786,2]
[421383746,1777537846000,-763.59250671,0.00019799,2]
[421383740,1777537846000,-808.64765926,0.00019699,2]
[421383745,1777537846000,-763.59250671,0.00019799,2]
[421383747,1777537846000,-763.59250671,0.00019799,2]
[421383743,1777537846000,-244.45658298,0.00019799,2]
[421383748,1777537846000,-763.59250671,0.00019799,2]
[421383749,1777537846000,-697.90123523,0.00019799,2]
[421383744,1777537846000,-763.59250671,0.00019799,2]
[421383741,1777537846000,-161.8154943,0.00019701,2]
[421383755,1777537847000,-65.69127148,0.00019799,2]
[421383757,1777537847000,-763.59250671,0.00019799,2]
[421383758,1777537847000,-469.27345336,0.00019799,2]
[421383762,1777537847000,-763.59250671,0.00019799,2]
[421383776,1777537847000,-770.53425677,0.00019799,2]
[421383763,1777537847000,-763.59250671,0.00019799,2]
[421383775,1777537847000,-770.53425677,0.00019799,2]
[421383774,1777537847000,-770.53425677,0.00019799,2]
[421383767,1777537847000,-763.59250671,0.00019799,2]
[421383761,1777537847000,-294.31905335,0.00019799,2]
[421383768,1777537847000,-763.59250671,0.00019799,2]
[421383765,1777537847000,-763.59250671,0.00019799,2]
[421383777,1777537847000,-770.53425677,0.00019799,2]
[421383771,1777537847000,-770.53425677,0.00019799,2]
[421383773,1777537847000,-770.53425677,0.00019799,2]
[421383772,1777537847000,-770.53425677,0.00019799,2]
[421383769,1777537847000,-763.59250671,0.00019799,2]
[421383779,1777537847000,-1146.91060525,0.00019799,2]
[421383778,1777537847000,-770.53425677,0.00019799,2]
[421383780,1777537847000,-77074.77751799,0.000198,2]
[421383770,1777537847000,-770.53425677,0.00019799,2]
[421383786,1777537848000,-427.77401337,0.000198,2]
[421383781,1777537848000,-8806.98300026,0.000198,2]
[421383782,1777537848000,-1826.03086402,0.000198,2]
[421383783,1777537848000,-857.52287274,0.000198,2]
[421383785,1777537848000,-5064.92389278,0.000198,2]
[421383784,1777537848000,-651.46593997,0.000198,2]
[421383861,1777539040000,-981.08142789,9.413e-05,2]
[421383885,1777539043000,-172.19517162,9.413e-05,2]
[421383883,1777539043000,-3562.20888734,9.413e-05,2]
[421383908,1777539046000,-379.80482838,9.413e-05,2]
[421383909,1777539046000,-300.0,9.507e-05,2]
[421383910,1777539046000,-851.93089125,9.584e-05,2]
[421383912,1777539046000,-1701.47172899,9.684e-05,2]
[421383911,1777539046000,-150.0,9.605e-05,2]
[421383913,1777539046000,-1810.13821334,9.784e-05,2]
[421383914,1777539046000,-1948.29382783,9.884e-05,2]
[421383916,1777539046000,-500.0,9.999e-05,2]
[421383920,1777539046000,-500.0,9.999e-05,2]
[421383917,1777539046000,-500.0,9.999e-05,2]
[421383924,1777539046000,-500.0,9.999e-05,2]
[421383922,1777539046000,-574.96574568,9.999e-05,2]
[421383923,1777539046000,-500.0,9.999e-05,2]
[421383921,1777539046000,-500.0,9.999e-05,2]
[421383915,1777539046000,-2086.44944244,9.984e-05,2]
[421383919,1777539046000,-500.0,9.999e-05,2]
[421383918,1777539046000,-500.0,9.999e-05,2]
[421383925,1777539047000,-500.0,9.999e-05,2]
[421383926,1777539047000,-500.0,9.999e-05,2]
[421383927,1777539047000,-500.0,9.999e-05,2]
[421383929,1777539047000,-500.0,9.999e-05,2]
[421383928,1777539047000,-300.0,9.999e-05,2]
[421383930,1777539047000,-500.0,9.999e-05,2]
[421383932,1777539047000,-500.0,9.999e-05,2]
[421383931,1777539047000,-500.0,9.999e-05,2]
[421383933,1777539047000,-500.0,9.999e-05,2]
[421383934,1777539047000,-500.0,9.999e-05,2]
[421383937,1777539047000,-23188.37138732,0.0001,2]
[421383935,1777539047000,-383.67347072,9.999e-05,2]
[421383939,1777539047000,-2224.60505705,0.00010084,2]
[421383940,1777539047000,-1136.71817083,0.00010184,2]
[421383936,1777539047000,-500.0,9.999e-05,2]
[421383938,1777539047000,-632.86746472,0.0001,2]
[421383956,1777539167000,555.0,0.00021917,120]
[421383957,1777539174000,888.0,0.00021917,120]
[421383958,1777539180000,999.0,0.00021917,120]
[421383959,1777539186000,666.0,0.00021917,120]
[421383960,1777539192000,444.0,0.00021917,120]
[421383961,1777539197000,777.0,0.00021917,120]
[421383963,1777539268000,222.0,0.00021917,120]
[421383964,1777539276000,555.0,0.00021917,120]
[421383965,1777539302000,555.0,0.00021917,120]
[421383968,1777539376000,407.25006929,0.00018027,120]
[421383967,1777539376000,407.25006929,0.00017927,120]
[421383971,1777539694000,-1226.04250083,0.00010184,2]
[421383972,1777539718000,-150.0,0.0001023,2]
[421383973,1777539742000,-563.0,0.00010229,2]
[421383974,1777539763000,-2500.91628627,0.00010366,2]
[421383976,1777539787000,-170.22,0.0001107,2]
[421383977,1777539810000,-575.0,0.0001107,2]
[421384061,1777540232000,-500.0,0.00011999,2]
[421384059,1777540232000,-500.0,0.00011999,2]
[421384045,1777540232000,-1200.0,0.00011937,2]
[421384048,1777540232000,-1868.8393711,0.0001198,2]
[421384046,1777540232000,-340.45,0.0001194,2]
[421384041,1777540232000,-1200.0,0.00011898,2]
[421384037,1777540232000,-2551.01256673,0.00011133,2]
[421384043,1777540232000,-300.0,0.00011936,2]
[421384042,1777540232000,-2954.91023041,0.00011899,2]
[421384040,1777540232000,-230.02,0.00011863,2]
[421384039,1777540232000,-210.58224155,0.00011498,2]
[421384038,1777540232000,-576.0,0.00011133,2]
[421384050,1777540232000,-500.0,0.00011999,2]
[421384044,1777540232000,-300.0,0.00011936,2]
[421384063,1777540232000,-442.38521414,0.00011999,2]
[421384078,1777540232000,-500.0,0.00011999,2]
[421384052,1777540232000,-500.0,0.00011999,2]
[421384065,1777540232000,-251.02655487,0.00011999,2]
[421384080,1777540232000,-500.0,0.00011999,2]
[421384077,1777540232000,-500.0,0.00011999,2]
[421384082,1777540232000,-500.0,0.00011999,2]
[421384086,1777540232000,-6910.30697213,0.00012,2]
[421384084,1777540232000,-292.11372111,0.00011999,2]
[421384075,1777540232000,-500.0,0.00011999,2]
[421384071,1777540232000,-500.0,0.00011999,2]
[421384067,1777540232000,-254.95580349,0.00011999,2]
[421384069,1777540232000,-500.0,0.00011999,2]
[421384055,1777540232000,-500.0,0.00011999,2]
[421384054,1777540232000,-500.0,0.00011999,2]
[421384057,1777540232000,-259.23899388,0.00011999,2]
[421384073,1777540232000,-500.0,0.00011999,2]
[421384126,1777540238000,-152.0,0.00012718,7]
[421384117,1777540238000,-248.07,0.000124,2]
[421384125,1777540238000,-1195.55838046,0.00012666,2]
[421384127,1777540238000,-152.0,0.0001273,7]
[421384124,1777540238000,-2204.99502401,0.00012666,2]
[421384118,1777540238000,-222.0,0.000124,2]
[421384112,1777540238000,-1600.67691427,0.00012,2]
[421384116,1777540238000,-161.81549429,0.000123,2]
[421384115,1777540238000,-333.0,0.00012275,2]
[421384111,1777540238000,-25357.46741858,0.00012,2]
[421384113,1777540238000,-37031.13096916,0.00012,2]
[421384120,1777540238000,-255.0,0.00012616,2]
[421384114,1777540238000,-555.0,0.00012275,2]
[421384119,1777540238000,-151.0,0.00012615,2]
[421384139,1777540238000,-395.63537094,0.000155,2]
[421384122,1777540238000,-155.0,0.00012616,2]
[421384135,1777540238000,-4250.09424221,0.00014966,2]
[421384130,1777540238000,-1000.0,0.00013699,2]
[421384133,1777540238000,-151.0,0.00014199,2]
[421384134,1777540238000,-171.01062976,0.00014872,2]
[421384131,1777540238000,-1000.0,0.00013699,2]
[421384128,1777540238000,-194.0,0.00013104,2]
[421384121,1777540238000,-211.0,0.00012616,2]
[421384136,1777540238000,-1493.62443188,0.00015,2]
[421384137,1777540238000,-1493.62443188,0.000152,2]
[421384138,1777540238000,-1493.62443188,0.000153,2]
[421384129,1777540238000,-3514.18361773,0.00013433,2]
[421384123,1777540238000,-444.0,0.00012616,2]
[421384132,1777540238000,-4073.45700505,0.00014199,2]
[421384158,1777540246000,-1097.98906094,0.000155,2]
[421384161,1777540246000,-4337.18967407,0.00015732,2]
[421384160,1777540246000,-1493.62443188,0.000156,2]
[421384159,1777540246000,-206.14945346,0.000156,2]
[421384209,1777541432000,-171.02632281,0.00010896,2]
[421384212,1777541432000,-150.0,0.00011089,2]
[421384213,1777541432000,-103.62769285,0.00012618,7]
[421384211,1777541432000,-575.0,0.00011006,2]
[421384251,1777541438000,-532.08144399,0.00015,2]
[421384248,1777541438000,-48.37230715,0.00012618,7]
[421384250,1777541438000,-1000.0,0.00013699,2]
[421384249,1777541438000,-172.89397179,0.00013089,2]
[421384286,1777541443000,-755.11298001,0.00015,2]
[421384295,1777541447000,-141.56999211,0.000152,2]
[421384293,1777541447000,-152.0,0.00013839,7]
[421384294,1777541447000,-206.43000789,0.00015,2]
[421384298,1777541474000,-1654.575424,7.6e-05,2]
[421384299,1777541692000,174.29761021,0.0001621,120]
[421384300,1777542028000,170.0,0.0002012,120]
[421384302,1777542186000,592.08,0.0002191,120]
[421384357,1777542638000,-2283.18905667,8.865e-05,2]
[421384358,1777542639000,-206.8148923,8.865e-05,2]
[421384366,1777542641000,-2467.45075736,8.955e-05,2]
[421384364,1777542641000,-337.1851077,8.865e-05,2]
[421384365,1777542641000,-343.47282643,8.955e-05,2]
[421384403,1777542647000,-2841.21736686,0.00011509,2]
[421384404,1777542647000,-587.23003007,0.000119,5]
[421384401,1777542647000,-2406.98883383,0.00010579,2]
[421384400,1777542647000,-2274.91768049,0.00010479,2]
[421384419,1777542647000,-1166.58554709,0.000152,2]
[421384420,1777542647000,-316.43,0.00015247,2]
[421384410,1777542647000,-160.26502379,0.00013678,2]
[421384408,1777542647000,-707.56670187,0.000129,2]
[421384418,1777542647000,-313.2,0.00015141,2]
[421384415,1777542647000,-707.56670183,0.00013886,2]
[421384409,1777542647000,-3376.16502646,0.00012956,2]
[421384399,1777542647000,-2142.84652716,0.00010379,2]
[421384398,1777542647000,-2010.77537382,0.00010279,2]
[421384407,1777542647000,-181.66510441,0.0001239,2]
[421384414,1777542647000,-1000.0,0.00013699,2]
[421384396,1777542647000,-1632.05265022,9.979e-05,2]
[421384406,1777542647000,-238.515312,0.00012,2]
[421384397,1777542647000,-1746.63306727,0.00010079,2]
[421384405,1777542647000,-1035.51870942,0.00012,2]
[421384395,1777542647000,-819.49169036,9.879e-05,2]
[421384394,1777542647000,-150.0,9.09e-05,2]
[421384392,1777542647000,-300.0,9.044e-05,2]
[421384393,1777542647000,-1200.0,9.044e-05,2]
[421384390,1777542647000,-2188.68501849,8.955e-05,2]
[421384391,1777542647000,-300.0,9.044e-05,2]
[421384402,1777542647000,-2444.61361008,0.00010786,2]
[421384412,1777542647000,-3911.11268606,0.00013679,2]
[421384434,1777542647000,-707.56670183,0.0001631,2]
[421384413,1777542647000,-1000.0,0.00013699,2]
[421384411,1777542647000,-476.90152457,0.00013678,2]
[421384444,1777542647000,-3271.64692918,0.00017295,2]
[421384443,1777542647000,-407.25006929,0.00017227,14]
[421384440,1777542647000,-407.25006929,0.00017027,7]
[421384438,1777542647000,-407.25006929,0.00016827,7]
[421384439,1777542647000,-407.25006929,0.00016927,7]
[421384441,1777542647000,-183.19607854,0.00017127,14]
[421384437,1777542647000,-407.25006929,0.00016727,2]
[421384436,1777542647000,-407.25006929,0.00016627,2]
[421384435,1777542647000,-4981.00800526,0.00016572,2]
[421384423,1777542647000,-174.29761022,0.00015399,2]
[421384425,1777542647000,-184.6,0.0001557,2]
[421384442,1777542647000,-224.05399075,0.00017127,14]
[421384427,1777542647000,-1166.58554709,0.000156,2]
[421384426,1777542647000,-206.14945347,0.000156,2]
[421384421,1777542647000,-1166.58554709,0.000153,2]
[421384433,1777542647000,-190.59,0.0001594,2]
[421384430,1777542647000,-4803.84239349,0.00015849,2]
[421384432,1777542647000,-193.43,0.0001594,2]
[421384416,1777542647000,-1166.58554709,0.00015,2]
[421384429,1777542647000,-186.05,0.00015776,2]
[421384431,1777542647000,-152.1263366,0.0001589,2]
[421384428,1777542647000,-500.0,0.00015732,2]
[421384422,1777542647000,-183.24,0.00015392,2]
[421384417,1777542647000,-707.56670183,0.00015098,2]
[421384424,1777542647000,-1166.58554709,0.000155,2]
[421384447,1777543261000,500.0,0.00021918,120]
[421384448,1777543272000,500.0,0.00021918,120]
[421384473,1777543832000,-152.0,0.00011869,7]